[Event "Schack-SM 2023: Mastarklassen"]
[Site "Helsingborg Arena, Mellersta Stenbocksgatan 14, Helsingborg, Sweden"]
[Date "2023.07.04"]
[Round "4.9"]
[White "Persson, Lars 1971"]
[Black "Carlstrom, Niklas"]
[Result "1-0"]
[TimeControl "90 minutes for 40 moves + 30 minutes for the rest of games + 30 seconds per move from move one."]
[WhiteElo "1941"]
[BlackElo "2125"]

1. d4 {[%clk 01:21:56]} {[%emt 00:09:04]} e6 {[%clk 01:30:45]} {[%emt
00:00:14]} 2. c4 {[%clk 01:21:26]} {[%emt 00:01:01]} f5 {[%clk 01:30:56]}
{[%emt 00:00:18]} 3. g3 {[%clk 01:19:29]} {[%emt 00:02:29]} Nf6 {[%clk
01:31:13]} {[%emt 00:00:12]} 4. Bg2 {[%clk 01:19:53]} {[%emt 00:00:06]} Be7
{[%clk 01:31:20]} {[%emt 00:00:23]} 5. Nh3 {[%clk 01:20:03]} {[%emt 00:00:20]}
O-O {[%clk 01:30:59]} {[%emt 00:00:50]} 6. O-O {[%clk 01:19:18]} {[%emt
00:01:16]} d6 {[%clk 01:30:24]} {[%emt 00:01:05]} 7. Nf4 {[%clk 01:18:28]}
{[%emt 00:01:20]} c6 {[%clk 01:29:18]} {[%emt 00:01:35]} 8. d5 {[%clk
01:14:15]} {[%emt 00:04:44]} e5 {[%clk 01:28:12]} {[%emt 00:01:35]} 9. dxc6
{[%clk 01:13:46]} {[%emt 00:01:00]} bxc6 {[%clk 01:27:58]} {[%emt 00:00:43]} 10.
Nd5 {[%clk 01:11:23]} {[%emt 00:02:54]} Nxd5 {[%clk 01:25:20]} {[%emt
00:03:08]} 11. Bxd5+ {[%clk 01:11:28]} {[%emt 00:00:25]} Kh8 {[%clk 01:25:24]}
{[%emt 00:00:25]} 12. Bg2 {[%clk 01:11:30]} {[%emt 00:00:28]} Qc7 {[%clk
01:20:21]} {[%emt 00:05:33]} 13. Qa4 {[%clk 01:09:23]} {[%emt 00:02:39]} Bb7
{[%clk 01:19:18]} {[%emt 00:01:33]} 14. Nc3 {[%clk 01:04:58]} {[%emt 00:04:54]}
Nd7 {[%clk 01:17:54]} {[%emt 00:01:53]} 15. b4 {[%clk 00:46:44]} {[%emt
00:18:45]} a5 {[%clk 01:14:51]} {[%emt 00:03:33]} 16. b5 {[%clk 00:34:38]}
{[%emt 00:12:36]} Nb6 {[%clk 01:10:34]} {[%emt 00:04:46]} 17. Qb3 {[%clk
00:34:41]} {[%emt 00:00:28]} a4 {[%clk 01:10:01]} {[%emt 00:01:03]} 18. Qb4
{[%clk 00:34:26]} {[%emt 00:00:45]} c5 {[%clk 01:08:09]} {[%emt 00:02:21]} 19.
Qb1 {[%clk 00:34:41]} {[%emt 00:00:16]} Bxg2 {[%clk 01:04:46]} {[%emt
00:03:52]} 20. Kxg2 {[%clk 00:35:01]} {[%emt 00:00:11]} Qb7+ {[%clk 01:04:12]}
{[%emt 00:01:02]} 21. f3 {[%clk 00:35:13]} {[%emt 00:00:19]} Nxc4 {[%clk
00:59:37]} {[%emt 00:05:05]} 22. Rd1 {[%clk 00:35:27]} {[%emt 00:00:16]} e4
{[%clk 00:47:20]} {[%emt 00:12:46]} 23. Qc2 {[%clk 00:17:29]} {[%emt 00:18:29]}
Bf6 {[%clk 00:36:39]} {[%emt 00:11:10]} 24. Rb1 {[%clk 00:10:50]} {[%emt
00:07:10]} Nb6 {[%clk 00:27:01]} {[%emt 00:10:07]} 25. Rxd6 {[%clk 00:08:42]}
{[%emt 00:02:39]} exf3+ {[%clk 00:25:18]} {[%emt 00:02:13]} 26. exf3 {[%clk
00:09:03]} {[%emt 00:00:09]} Rae8 {[%clk 00:24:23]} {[%emt 00:01:24]} 27. Rd2
{[%clk 00:05:28]} {[%emt 00:04:07]} Bxc3 {[%clk 00:10:09]} {[%emt 00:14:43]} 28.
Qxc3 {[%clk 00:05:44]} {[%emt 00:00:14]} Nd5 {[%clk 00:10:16]} {[%emt
00:00:22]} 29. Qxc5 {[%clk 00:04:20]} {[%emt 00:01:55]} Ne3+ {[%clk 00:10:29]}
{[%emt 00:00:16]} 30. Kf2 {[%clk 00:04:17]} {[%emt 00:00:34]} Ng4+ {[%clk
00:09:04]} {[%emt 00:01:54]} 31. Kg2 {[%clk 00:04:28]} {[%emt 00:00:20]} f4
{[%clk 00:06:52]} {[%emt 00:02:41]} 32. Qc6 {[%clk 00:03:02]} {[%emt 00:01:57]}
Qe7 {[%clk 00:05:01]} {[%emt 00:02:20]} 33. Bb2 {[%clk 00:01:30]} {[%emt
00:02:03]} Ne3+ {[%clk 00:04:02]} {[%emt 00:01:29]} 34. Kf2 {[%clk 00:01:45]}
{[%emt 00:00:15]} fxg3+ {[%clk 00:02:51]} {[%emt 00:01:41]} 35. hxg3 {[%clk
00:02:01]} {[%emt 00:00:14]} Nf5 {[%clk 00:01:47]} {[%emt 00:01:32]} 36. Qc3
{[%clk 00:01:51]} {[%emt 00:00:40]} Qg5 {[%clk 00:01:40]} {[%emt 00:00:38]} 37.
Rg1 {[%clk 00:01:29]} {[%emt 00:00:53]} Re3 {[%clk 00:01:13]} {[%emt 00:00:57]}
38. Qb4 {[%clk 00:01:07]} {[%emt 00:00:53]} Ne7 {[%clk 00:00:49]} {[%emt
00:00:53]} 39. f4 {[%clk 00:01:15]} {[%emt 00:00:22]} Re6 {[%clk 00:00:43]}
{[%emt 00:00:36]} 40. Rd8 {[%clk 00:00:50]} {[%emt 00:00:55]} Qf5 {[%clk
00:00:48]} {[%emt 00:00:25]} 41. Qc3 {[%clk 00:15:46]} {[%emt 00:15:34]} Rg6
{[%clk 00:28:55]} {[%emt 00:02:21]} 42. Rgd1 {[%clk 00:08:24]} {[%emt
00:07:54]} h6 {[%clk 00:24:18]} {[%emt 00:05:07]} 43. Rxf8+ {[%clk 00:04:41]}
{[%emt 00:04:13]} Qxf8 {[%clk 00:24:40]} {[%emt 00:00:08]} 44. Ba3 {[%clk
00:02:54]} {[%emt 00:02:18]} Qf7 {[%clk 00:23:26]} {[%emt 00:01:43]} 45. Bxe7
{[%clk 00:02:09]} {[%emt 00:01:15]} Qxe7 {[%clk 00:23:49]} {[%emt 00:00:07]} 46.
Qc8+ {[%clk 00:02:03]} {[%emt 00:00:37]} Kh7 {[%clk 00:24:11]} {[%emt
00:00:07]} 47. Rd8 {[%clk 00:02:12]} {[%emt 00:00:21]} Re6 {[%clk 00:23:27]}
{[%emt 00:01:13]} 48. Rh8+ {[%clk 00:01:54]} {[%emt 00:00:48]} Kg6 {[%clk
00:23:50]} {[%emt 00:00:06]} 49. Qc2+ {[%clk 00:01:55]} {[%emt 00:00:30]} Kf7
{[%clk 00:20:55]} {[%emt 00:03:24]} 50. Qc4 {[%clk 00:01:30]} {[%emt 00:00:55]}
Qf6 {[%clk 00:19:53]} {[%emt 00:01:31]} 51. Kg2 {[%clk 00:01:42]} {[%emt
00:00:19]} Kg6 {[%clk 00:18:32]} {[%emt 00:01:51]} 52. Qd3+ {[%clk 00:01:32]}
{[%emt 00:00:40]} Qf5 {[%clk 00:05:09]} {[%emt 00:13:53]} 53. Qxf5+ {[%clk
00:01:31]} {[%emt 00:00:30]} Kxf5 {[%clk 00:05:33]} {[%emt 00:00:07]} 54. Kf3
{[%clk 00:01:50]} {[%emt 00:00:12]} Rb6 {[%clk 00:05:31]} {[%emt 00:00:31]} 55.
g4+ {[%clk 00:01:56]} {[%emt 00:00:23]} Kf6 {[%clk 00:05:51]} {[%emt 00:00:10]}
56. Rf8+ {[%clk 00:02:02]} {[%emt 00:00:24]} Ke7 {[%clk 00:05:56]} {[%emt
00:00:24]} 57. Rf5 {[%clk 00:02:20]} {[%emt 00:00:13]} Rd6 {[%clk 00:04:25]}
{[%emt 00:02:01]} 58. Ke3 {[%clk 00:02:11]} {[%emt 00:00:40]} Rg6 {[%clk
00:04:09]} {[%emt 00:00:45]} 59. g5 {[%clk 00:02:02]} {[%emt 00:00:39]} Rd6
{[%clk 00:03:30]} {[%emt 00:01:09]} 60. Re5+ {[%clk 00:01:20]} {[%emt
00:01:13]} Kd7 {[%clk 00:03:22]} {[%emt 00:00:37]} 61. Re4 {[%clk 00:01:10]}
{[%emt 00:00:41]} Kc7 {[%clk 00:03:12]} {[%emt 00:00:40]} 62. Rxa4 {[%clk
00:01:16]} {[%emt 00:00:24]} hxg5 {[%clk 00:03:03]} {[%emt 00:00:38]} 63. fxg5
{[%clk 00:01:21]} {[%emt 00:00:25]} Rd5 {[%clk 00:03:20]} {[%emt 00:00:13]} 64.
Rc4+ {[%clk 00:01:00]} {[%emt 00:00:52]} Kb6 {[%clk 00:03:31]} {[%emt
00:00:18]} 65. a4 {[%clk 00:01:11]} {[%emt 00:00:20]} Rxg5 {[%clk 00:03:49]}
{[%emt 00:00:11]} 66. Rc6+ {[%clk 00:01:22]} {[%emt 00:00:19]} Kb7 {[%clk
00:03:48]} {[%emt 00:00:30]} 67. Kd3 {[%clk 00:00:59]} {[%emt 00:00:54]} Rg4
{[%clk 00:02:44]} {[%emt 00:01:34]} 68. Rc4 {[%clk 00:00:58]} {[%emt 00:00:32]}
Rg1 {[%clk 00:02:46]} {[%emt 00:00:27]} 69. Kd4 {[%clk 00:01:05]} {[%emt
00:00:23]} Kb6 {[%clk 00:01:04]} {[%emt 00:02:11]} 70. Rc6+ {[%clk 00:01:05]}
{[%emt 00:00:30]} Ka5 {[%clk 00:00:57]} {[%emt 00:00:38]} 71. Ra6+ {[%clk
00:01:04]} {[%emt 00:00:31]} Kb4 {[%clk 00:01:22]} {[%emt 00:00:05]} 72. b6
{[%clk 00:00:51]} {[%emt 00:00:43]} Rd1 {[%clk 00:01:40]} {[%emt 00:00:11]} 73.
Ke5 {[%clk 00:01:11]} {[%emt 00:00:10]} Kc5 {[%clk 00:01:50]} {[%emt 00:00:20]}
74. a5 {[%clk 00:00:52]} {[%emt 00:00:50]} Re1 {[%clk 00:01:57]} {[%emt
00:00:23]} 75. Kf5 {[%clk 00:01:09]} {[%emt 00:00:12]} Kc6 {[%clk 00:01:40]}
{[%emt 00:00:47]} 76. Ra7 {[%clk 00:01:13]} {[%emt 00:00:27]} Rb1 {[%clk
00:01:23]} {[%emt 00:00:47]} 77. Rc7+ {[%clk 00:01:07]} {[%emt 00:00:36]} Kd6
{[%clk 00:01:40]} {[%emt 00:00:12]} 78. Ra7 {[%clk 00:01:04]} {[%emt 00:00:34]}
Kc6 {[%clk 00:01:47]} {[%emt 00:00:23]} 79. Kg6 {[%clk 00:01:18]} {[%emt
00:00:16]} Rg1 {[%clk 00:02:00]} {[%emt 00:00:16]} 80. Kf7 {[%clk 00:01:25]}
{[%emt 00:00:23]} Rb1 {[%clk 00:01:00]} {[%emt 00:01:30]} 81. Kxg7 {[%clk
00:01:27]} {[%emt 00:00:27]} Rb2 {[%clk 00:01:18]} {[%emt 00:00:14]} 82. Kf6
{[%clk 00:01:47]} {[%emt 00:00:10]} Rb1 {[%clk 00:01:32]} {[%emt 00:00:15]} 83.
Ke5 {[%clk 00:01:58]} {[%emt 00:00:17]} Rd1 {[%clk 00:01:07]} {[%emt 00:00:57]}
84. Rc7+ {[%clk 00:02:07]} {[%emt 00:00:22]} Kb5 {[%clk 00:01:17]} {[%emt
00:00:19]} 85. b7 {[%clk 00:01:59]} {[%emt 00:00:39]} Re1 {[%clk 00:01:09]}
{[%emt 00:00:38]} 86. Kf4 {[%clk 00:02:05]} 1-0

[Event "Schack-SM 2023: Veteran-SM 65+"]
[Site "Helsingborg Arena, Mellersta Stenbocksgatan 14, Helsingborg, Sweden"]
[Date "2023.07.04"]
[Round "4.1"]
[White "Soderberg, Per"]
[Black "Malmdin, Nils-Ake"]
[Result "1/2-1/2"]
[TimeControl "90 minutes for 40 moves + 30 minutes for the rest of games + 30 seconds per move from move one."]
[WhiteTitle "CM"]
[BlackTitle "FM"]
[WhiteElo "2111"]
[BlackElo "2091"]

1. e4 {[%clk 01:30:57]} {[%emt 00:00:02]} d5 {[%clk 01:29:57]} {[%emt
00:01:03]} 2. exd5 {[%clk 01:31:18]} {[%emt 00:00:11]} Nf6 {[%clk 01:30:17]}
{[%emt 00:00:10]} 3. d4 {[%clk 01:31:31]} {[%emt 00:00:17]} Nxd5 {[%clk
01:29:34]} {[%emt 00:01:11]} 4. c4 {[%clk 01:29:04]} {[%emt 00:02:58]} Nb6
{[%clk 01:29:45]} {[%emt 00:00:19]} 5. Nf3 {[%clk 01:28:38]} {[%emt 00:00:57]}
g6 {[%clk 01:29:55]} {[%emt 00:00:18]} 6. Be2 {[%clk 01:28:09]} {[%emt
00:01:00]} Bg7 {[%clk 01:30:11]} {[%emt 00:00:13]} 7. O-O {[%clk 01:26:20]}
{[%emt 00:02:20]} O-O {[%clk 01:29:46]} {[%emt 00:00:55]} 8. h3 {[%clk
01:26:46]} {[%emt 00:00:04]} Nc6 {[%clk 01:27:42]} {[%emt 00:02:34]} 9. c5
{[%clk 01:23:30]} {[%emt 00:03:47]} Nd5 {[%clk 01:26:14]} {[%emt 00:01:57]} 10.
Nc3 {[%clk 01:23:52]} {[%emt 00:00:08]} h6 {[%clk 01:14:27]} {[%emt 00:12:16]}
11. Qb3 {[%clk 01:17:03]} {[%emt 00:07:20]} e6 {[%clk 01:09:27]} {[%emt
00:05:30]} 12. Rd1 {[%clk 01:15:13]} {[%emt 00:02:20]} a6 {[%clk 01:01:16]}
{[%emt 00:08:41]} 13. a3 {[%clk 01:11:49]} {[%emt 00:03:56]} Kh7 {[%clk
00:57:19]} {[%emt 00:04:25]} 14. Qc2 {[%clk 01:04:16]} {[%emt 00:08:03]} b5
{[%clk 00:48:10]} {[%emt 00:09:39]} 15. cxb6 {[%clk 01:03:02]} {[%emt
00:01:44]} cxb6 {[%clk 00:48:22]} {[%emt 00:00:18]} 16. Nxd5 {[%clk 01:02:43]}
{[%emt 00:00:49]} Qxd5 {[%clk 00:48:32]} {[%emt 00:00:19]} 17. Bc4 {[%clk
00:59:53]} {[%emt 00:03:21]} Qd6 {[%clk 00:35:56]} {[%emt 00:13:05]} 18. Qe4
{[%clk 00:57:17]} {[%emt 00:03:07]} Bb7 {[%clk 00:34:24]} {[%emt 00:02:02]} 19.
Bf4 {[%clk 00:56:59]} {[%emt 00:00:48]} Qd8 {[%clk 00:31:01]} {[%emt 00:03:54]}
20. Qe3 {[%clk 00:51:58]} {[%emt 00:05:30]} Ne7 {[%clk 00:27:56]} {[%emt
00:03:33]} 21. Be5 {[%clk 00:49:34]} {[%emt 00:02:55]} Nd5 {[%clk 00:27:38]}
{[%emt 00:00:49]} 22. Bxd5 {[%clk 00:48:21]} {[%emt 00:01:44]} Qxd5 {[%clk
00:27:22]} {[%emt 00:00:44]} 23. Bxg7 {[%clk 00:47:05]} {[%emt 00:01:47]} Kxg7
{[%clk 00:27:43]} {[%emt 00:00:08]} 24. Rac1 {[%clk 00:45:03]} {[%emt
00:02:33]} Rac8 {[%clk 00:27:32]} {[%emt 00:00:40]} 25. Qe5+ {[%clk 00:42:29]}
{[%emt 00:03:05]} Kg8 {[%clk 00:25:20]} {[%emt 00:02:41]} 26. Qf6 {[%clk
00:38:43]} {[%emt 00:04:17]} Qd8 {[%clk 00:24:26]} {[%emt 00:01:22]} 27. Qf4
{[%clk 00:32:59]} {[%emt 00:06:15]} Rxc1 {[%clk 00:13:05]} {[%emt 00:11:52]} 28.
Rxc1 {[%clk 00:32:36]} {[%emt 00:00:53]} Bxf3 {[%clk 00:13:26]} {[%emt
00:00:08]} 29. gxf3 {[%clk 00:32:55]} {[%emt 00:00:12]} Qd5 {[%clk 00:13:22]}
{[%emt 00:00:33]} 30. Rc7 {[%clk 00:32:12]} {[%emt 00:01:14]} Qb3 {[%clk
00:11:14]} {[%emt 00:02:38]} 31. Qxh6 {[%clk 00:30:44]} {[%emt 00:01:58]} Qxf3
{[%clk 00:08:01]} {[%emt 00:03:43]} 32. Qe3 {[%clk 00:29:19]} {[%emt 00:01:53]}
1/2-1/2

[Event "Schack-SM 2023: Veteran-SM 50+"]
[Site "Helsingborg Arena, Mellersta Stenbocksgatan 14, Helsingborg, Sweden"]
[Date "2023.07.04"]
[Round "4.1"]
[White "Wahlund, Max"]
[Black "Moborn, Anders"]
[Result "1-0"]
[TimeControl "90 minutes for 40 moves + 30 minutes for the rest of games + 30 seconds per move from move one."]
[WhiteTitle "CM"]
[WhiteElo "2002"]
[BlackElo "1956"]

1. e4 {[%clk 01:25:11]} {[%emt 00:05:48]} e6 {[%clk 01:30:43]} {[%emt
00:00:18]} 2. d4 {[%clk 01:25:37]} {[%emt 00:00:04]} d5 {[%clk 01:31:00]}
{[%emt 00:00:12]} 3. Nc3 {[%clk 01:26:04]} {[%emt 00:00:04]} Bb4 {[%clk
01:31:07]} {[%emt 00:00:23]} 4. Bd2 {[%clk 01:26:23]} {[%emt 00:00:11]} dxe4
{[%clk 01:26:59]} {[%emt 00:04:39]} 5. Qg4 {[%clk 01:26:07]} {[%emt 00:00:45]}
Nf6 {[%clk 01:24:29]} {[%emt 00:03:01]} 6. Qxg7 {[%clk 01:26:22]} {[%emt
00:00:14]} Rg8 {[%clk 01:24:29]} {[%emt 00:00:30]} 7. Qh6 {[%clk 01:26:49]}
{[%emt 00:00:02]} c5 {[%clk 01:20:29]} {[%emt 00:04:31]} 8. dxc5 {[%clk
01:20:50]} {[%emt 00:06:29]} Bxc5 {[%clk 01:18:03]} {[%emt 00:02:55]} 9. O-O-O
{[%clk 01:20:38]} {[%emt 00:00:42]} Rg6 {[%clk 01:17:57]} {[%emt 00:00:36]} 10.
Qh4 {[%clk 01:16:01]} {[%emt 00:05:07]} Rg4 {[%clk 01:14:06]} {[%emt 00:04:21]}
11. Qh3 {[%clk 01:14:41]} {[%emt 00:01:51]} Qe7 {[%clk 01:09:30]} {[%emt
00:05:06]} 12. f3 {[%clk 01:12:30]} {[%emt 00:02:41]} exf3 {[%clk 01:05:13]}
{[%emt 00:04:47]} 13. Nxf3 {[%clk 01:01:04]} {[%emt 00:11:56]} Nc6 {[%clk
01:02:32]} {[%emt 00:03:11]} 14. Bg5 {[%clk 00:50:53]} {[%emt 00:10:41]} Rxg5
{[%clk 00:53:04]} {[%emt 00:09:58]} 15. Nxg5 {[%clk 00:50:42]} {[%emt
00:00:40]} e5 {[%clk 00:52:46]} {[%emt 00:00:49]} 16. Qh4 {[%clk 00:48:22]}
{[%emt 00:02:49]} Be3+ {[%clk 00:46:47]} {[%emt 00:06:29]} 17. Kb1 {[%clk
00:48:34]} {[%emt 00:00:18]} Ng4 {[%clk 00:46:32]} {[%emt 00:00:46]} 18. Qxh7
{[%clk 00:31:21]} {[%emt 00:17:42]} Bxg5 {[%clk 00:29:40]} {[%emt 00:17:22]} 19.
Nd5 {[%clk 00:24:44]} {[%emt 00:07:07]} Qf8 {[%clk 00:26:48]} {[%emt 00:03:22]}
20. Nc7+ {[%clk 00:16:11]} {[%emt 00:09:04]} Ke7 {[%clk 00:27:07]} {[%emt
00:00:11]} 21. Nd5+ {[%clk 00:14:05]} {[%emt 00:02:35]} Kd6 {[%clk 00:12:29]}
{[%emt 00:15:08]} 22. Nb6+ {[%clk 00:05:17]} {[%emt 00:09:18]} Nd4 {[%clk
00:10:43]} {[%emt 00:02:17]} 23. Nxc8+ {[%clk 00:04:45]} {[%emt 00:01:03]} Qxc8
{[%clk 00:09:01]} {[%emt 00:02:12]} 24. Bd3 {[%clk 00:02:23]} {[%emt 00:02:51]}
Nf2 {[%clk 00:07:45]} {[%emt 00:01:46]} 25. Qxf7 {[%clk 00:02:51]} {[%emt
00:00:02]} Be3 {[%clk 00:06:26]} {[%emt 00:01:49]} 26. Rhf1 {[%clk 00:02:29]}
{[%emt 00:00:51]} Qd7 {[%clk 00:03:45]} {[%emt 00:03:12]} 27. Rxf2 {[%clk
00:02:39]} {[%emt 00:00:20]} Bxf2 {[%clk 00:03:22]} {[%emt 00:00:53]} 28. Qxf2
{[%clk 00:03:06]} {[%emt 00:00:02]} Qg4 {[%clk 00:02:24]} {[%emt 00:01:29]} 29.
Be2 {[%clk 00:02:57]} {[%emt 00:00:39]} Qe4 {[%clk 00:02:36]} {[%emt 00:00:18]}
30. Bf3 {[%clk 00:02:45]} {[%emt 00:00:41]} Qf4 {[%clk 00:02:50]} {[%emt
00:00:16]} 31. c3 {[%emt 00:01:12]} Qf5+ {[%clk 00:02:49]} {[%emt 00:00:26]} 32.
Ka1 {[%clk 00:02:31]} {[%emt 00:00:07]} Rc8 {[%clk 00:02:49]} {[%emt 00:00:31]}
33. cxd4 {[%clk 00:02:53]} {[%emt 00:00:08]} Qd3 {[%clk 00:02:48]} {[%emt
00:00:31]} 34. dxe5+ {[%clk 00:02:50]} {[%emt 00:00:33]} Ke7 {[%clk 00:02:57]}
{[%emt 00:00:21]} 35. Qh4+ {[%clk 00:02:59]} {[%emt 00:00:20]} 1-0

[Event "Schack-SM 2023: Sverigemastarklassen"]
[Site "Helsingborg Arena, Mellersta Stenbocksgatan 14, Helsingborg, Sweden"]
[Date "2023.07.04"]
[Round "4.1"]
[White "Hector, Jonny"]
[Black "Kucuksari, Kaan"]
[Result "1-0"]
[TimeControl "90 minutes for 40 moves + 30 minutes for the rest of the game + 30 seconds per move from move one."]
[WhiteTitle "GM"]
[BlackTitle "IM"]
[WhiteElo "2481"]
[BlackElo "2512"]

1. e4 {[%clk 01:30:46]} {[%emt 00:00:12]} c5 {[%clk 01:30:52]} {[%emt
00:00:10]} 2. Nf3 {[%clk 01:31:06]} {[%emt 00:00:09]} d6 {[%clk 01:31:15]}
{[%emt 00:00:08]} 3. d4 {[%clk 01:31:23]} {[%emt 00:00:11]} cxd4 {[%clk
01:31:39]} {[%emt 00:00:08]} 4. Nxd4 {[%clk 01:31:46]} {[%emt 00:00:06]} Nf6
{[%clk 01:32:04]} {[%emt 00:00:06]} 5. Nc3 {[%clk 01:32:06]} {[%emt 00:00:09]}
a6 {[%clk 01:32:27]} {[%emt 00:00:08]} 6. Bg5 {[%clk 01:32:20]} {[%emt
00:00:15]} Nbd7 {[%clk 01:32:48]} {[%emt 00:00:10]} 7. f4 {[%clk 01:30:38]}
{[%emt 00:02:10]} Qc7 {[%clk 01:32:53]} {[%emt 00:00:27]} 8. Qf3 {[%clk
01:30:08]} {[%emt 00:00:59]} h6 {[%clk 01:32:54]} {[%emt 00:00:31]} 9. Bxf6
{[%clk 01:27:47]} {[%emt 00:02:49]} Nxf6 {[%clk 01:33:04]} {[%emt 00:00:22]} 10.
f5 {[%clk 01:27:27]} {[%emt 00:00:50]} Qc5 {[%clk 01:33:24]} {[%emt 00:00:10]}
11. Nb3 {[%clk 01:20:13]} {[%emt 00:07:42]} Qe5 {[%clk 01:33:37]} {[%emt
00:00:19]} 12. Bd3 {[%clk 01:14:51]} {[%emt 00:05:51]} g5 {[%clk 01:33:40]}
{[%emt 00:00:28]} 13. O-O {[%clk 01:11:32]} {[%emt 00:03:47]} Bd7 {[%clk
01:05:31]} {[%emt 00:28:41]} 14. Nd5 {[%clk 01:06:56]} {[%emt 00:05:05]} Nxd5
{[%clk 01:03:41]} {[%emt 00:02:21]} 15. exd5 {[%clk 01:07:13]} {[%emt
00:00:11]} Qxb2 {[%clk 00:55:49]} {[%emt 00:08:24]} 16. f6 {[%clk 01:00:57]}
{[%emt 00:06:45]} Qxf6 {[%clk 00:52:21]} {[%emt 00:03:59]} 17. Qh5 {[%clk
00:59:40]} {[%emt 00:01:46]} Qc3 {[%clk 00:51:31]} {[%emt 00:01:21]} 18. Qxf7+
{[%clk 00:55:12]} {[%emt 00:04:57]} Kd8 {[%clk 00:51:59]} {[%emt 00:00:03]} 19.
Rae1 {[%clk 00:48:51]} {[%emt 00:06:49]} Kc7 {[%clk 00:50:19]} {[%emt
00:02:11]} 20. Re4 {[%clk 00:47:48]} {[%emt 00:01:32]} b5 {[%clk 00:41:39]}
{[%emt 00:09:11]} 21. a4 {[%clk 00:43:02]} {[%emt 00:05:15]} h5 {[%clk
00:36:32]} {[%emt 00:05:38]} 22. Nd4 {[%clk 00:34:20]} {[%emt 00:09:11]} Kb6
{[%clk 00:25:59]} {[%emt 00:11:04]} 23. Rb1 {[%clk 00:17:52]} {[%emt 00:16:57]}
Rh6 {[%clk 00:21:58]} {[%emt 00:04:32]} 24. Qf2 {[%clk 00:15:29]} {[%emt
00:02:52]} Qc5 {[%clk 00:21:14]} {[%emt 00:01:15]} 25. axb5 {[%clk 00:14:16]}
{[%emt 00:01:43]} a5 {[%clk 00:21:37]} {[%emt 00:00:08]} 26. Kh1 {[%clk
00:14:10]} {[%emt 00:00:35]} Bg7 {[%clk 00:19:34]} {[%emt 00:02:33]} 27. c3
{[%clk 00:14:06]} {[%emt 00:00:34]} Be5 {[%clk 00:18:19]} {[%emt 00:01:46]} 28.
Qe2 {[%clk 00:11:56]} {[%emt 00:02:39]} a4 {[%clk 00:11:43]} {[%emt 00:07:07]}
29. Nc6 {[%clk 00:08:58]} {[%emt 00:03:27]} Bg4 {[%clk 00:09:52]} {[%emt
00:02:21]} 30. Nxe5 {[%clk 00:07:49]} {[%emt 00:01:39]} dxe5 {[%clk 00:10:04]}
{[%emt 00:00:18]} 31. Qa2 {[%clk 00:06:28]} {[%emt 00:01:51]} a3 {[%clk
00:09:55]} {[%emt 00:00:39]} 32. Rc4 {[%clk 00:06:33]} {[%emt 00:00:24]} Qe3
{[%clk 00:10:21]} {[%emt 00:00:05]} 33. Rc6+ {[%clk 00:06:27]} {[%emt
00:00:35]} Rxc6 {[%clk 00:10:47]} {[%emt 00:00:04]} 34. bxc6+ {[%clk 00:06:51]}
{[%emt 00:00:05]} Kc7 {[%clk 00:09:42]} {[%emt 00:01:36]} 35. Bf1 {[%clk
00:04:57]} {[%emt 00:02:24]} Bf5 {[%clk 00:03:22]} {[%emt 00:06:50]} 36. d6+
{[%clk 00:03:07]} {[%emt 00:02:19]} Kxc6 {[%clk 00:03:21]} {[%emt 00:00:32]} 37.
Bb5+ {[%clk 00:02:42]} {[%emt 00:00:55]} Kb6 {[%clk 00:00:35]} {[%emt
00:03:17]} 38. Bd3+ {[%clk 00:02:45]} {[%emt 00:00:25]} Kc6 {[%clk 00:00:41]}
{[%emt 00:00:25]} 39. Bxf5 {[%clk 00:02:52]} {[%emt 00:00:23]} Kxd6 {[%clk
00:00:31]} {[%emt 00:00:41]} 1-0